{"text_format":"3","workbook":"xlsx","n_sheets":2,"sheets":["Pelacak Proyek","Penyiapan"],"not_rendered":{"defined_names":6},"read":"whole","date_system":"1900"}

{"sheet":"Pelacak Proyek","index":0,"n_rows":13,"n_cols":15,"rows_kept":13}
[null,"Pelacak Proyek"]
[null,null,"Persentase Lebih/Kurang untuk Ditandai:",{"v":0.25,"d":"25%"}]
[]
[null,"Proyek","Kategori","Ditugaskan Kepada","Estimasi\nMulai","Estimasi \nSelesai","Estimasi Pekerjaan (dalam jam)","Estimasi Durasi (dalam hari)","Aktual \nMulai","Aktual\nSelesai","Ikon Bendera untuk Melebihi/di Bawah Pekerjaan Aktual (dalam jam)","Pekerjaan Aktual \n(dalam jam)","Ikon Bendera untuk Melebihi/di Bawah Durasi Aktual (dalam hari)","Durasi Aktual (dalam hari)","Catatan"]
[null,"Proyek 1","Kategori 1","Karyawan 1",{"$f":"TODAY()-65","v":"2017-08-08"},{"$f":"TODAY()-5","v":"2017-10-07"},210,{"$f":"IF(COUNTA('Pelacak Proyek'!$E5,'Pelacak Proyek'!$F5)<>2,\"\",DAYS360('Pelacak Proyek'!$E5,'Pelacak Proyek'!$F5,FALSE))","v":59},{"$f":"TODAY()-65","v":"2017-08-08"},{"$f":"TODAY()","v":"2017-10-12"},{"$f":"IFERROR(IF(PelacakTugas[Pekerjaan Aktual \n(dalam jam)]=0,\"\",IF(ABS((PelacakTugas[[#This Row],[Pekerjaan Aktual \n(dalam jam)]]-PelacakTugas[[#This Row],[Estimasi Pekerjaan (dalam jam)]])/PelacakTugas[[#This Row],[Estimasi Pekerjaan (dalam jam)]])>PersentaseBendera,1,0)),\"\")","v":1},300,{"$f":"IFERROR(IF(PelacakTugas[Durasi Aktual (dalam hari)]=0,\"\",IF(ABS((PelacakTugas[[#This Row],[Durasi Aktual (dalam hari)]]-PelacakTugas[[#This Row],[Estimasi Durasi (dalam hari)]])/PelacakTugas[[#This Row],[Estimasi Durasi (dalam hari)]])>PersentaseBendera,1,0)),\"\")","v":0},{"$f":"IF(COUNTA('Pelacak Proyek'!$I5,'Pelacak Proyek'!$J5)<>2,\"\",DAYS360('Pelacak Proyek'!$I5,'Pelacak Proyek'!$J5,FALSE))","v":64}]
[null,"Proyek 2","Kategori 2","Karyawan 4",{"$f":"TODAY()-41","v":"2017-09-01"},{"$f":"TODAY()-10","v":"2017-10-02"},400,{"$f":"IF(COUNTA('Pelacak Proyek'!$E6,'Pelacak Proyek'!$F6)<>2,\"\",DAYS360('Pelacak Proyek'!$E6,'Pelacak Proyek'!$F6,FALSE))","v":31},{"$f":"TODAY()-41","v":"2017-09-01"},{"$f":"TODAY()-7","v":"2017-10-05"},{"$f":"IFERROR(IF(PelacakTugas[Pekerjaan Aktual \n(dalam jam)]=0,\"\",IF(ABS((PelacakTugas[[#This Row],[Pekerjaan Aktual \n(dalam jam)]]-PelacakTugas[[#This Row],[Estimasi Pekerjaan (dalam jam)]])/PelacakTugas[[#This Row],[Estimasi Pekerjaan (dalam jam)]])>PersentaseBendera,1,0)),\"\")","v":0},390,{"$f":"IFERROR(IF(PelacakTugas[Durasi Aktual (dalam hari)]=0,\"\",IF(ABS((PelacakTugas[[#This Row],[Durasi Aktual (dalam hari)]]-PelacakTugas[[#This Row],[Estimasi Durasi (dalam hari)]])/PelacakTugas[[#This Row],[Estimasi Durasi (dalam hari)]])>PersentaseBendera,1,0)),\"\")","v":0},{"$f":"IF(COUNTA('Pelacak Proyek'!$I6,'Pelacak Proyek'!$J6)<>2,\"\",DAYS360('Pelacak Proyek'!$I6,'Pelacak Proyek'!$J6,FALSE))","v":34}]
[null,"Proyek 3","Kategori 1","Karyawan 2",{"$f":"TODAY()-100","v":"2017-07-04"},{"$f":"TODAY()-40","v":"2017-09-02"},500,{"$f":"IF(COUNTA('Pelacak Proyek'!$E7,'Pelacak Proyek'!$F7)<>2,\"\",DAYS360('Pelacak Proyek'!$E7,'Pelacak Proyek'!$F7,FALSE))","v":58},{"$f":"TODAY()-100","v":"2017-07-04"},{"$f":"TODAY()-27","v":"2017-09-15"},{"$f":"IFERROR(IF(PelacakTugas[Pekerjaan Aktual \n(dalam jam)]=0,\"\",IF(ABS((PelacakTugas[[#This Row],[Pekerjaan Aktual \n(dalam jam)]]-PelacakTugas[[#This Row],[Estimasi Pekerjaan (dalam jam)]])/PelacakTugas[[#This Row],[Estimasi Pekerjaan (dalam jam)]])>PersentaseBendera,1,0)),\"\")","v":0},500,{"$f":"IFERROR(IF(PelacakTugas[Durasi Aktual (dalam hari)]=0,\"\",IF(ABS((PelacakTugas[[#This Row],[Durasi Aktual (dalam hari)]]-PelacakTugas[[#This Row],[Estimasi Durasi (dalam hari)]])/PelacakTugas[[#This Row],[Estimasi Durasi (dalam hari)]])>PersentaseBendera,1,0)),\"\")","v":0},{"$f":"IF(COUNTA('Pelacak Proyek'!$I7,'Pelacak Proyek'!$J7)<>2,\"\",DAYS360('Pelacak Proyek'!$I7,'Pelacak Proyek'!$J7,FALSE))","v":71}]
[null,"Proyek 4","Kategori 2","Karyawan 3",{"$f":"TODAY()-90","v":"2017-07-14"},{"$f":"TODAY()-80","v":"2017-07-24"},250,{"$f":"IF(COUNTA('Pelacak Proyek'!$E8,'Pelacak Proyek'!$F8)<>2,\"\",DAYS360('Pelacak Proyek'!$E8,'Pelacak Proyek'!$F8,FALSE))","v":10},{"$f":"TODAY()-90","v":"2017-07-14"},{"$f":"TODAY()-71","v":"2017-08-02"},{"$f":"IFERROR(IF(PelacakTugas[Pekerjaan Aktual \n(dalam jam)]=0,\"\",IF(ABS((PelacakTugas[[#This Row],[Pekerjaan Aktual \n(dalam jam)]]-PelacakTugas[[#This Row],[Estimasi Pekerjaan (dalam jam)]])/PelacakTugas[[#This Row],[Estimasi Pekerjaan (dalam jam)]])>PersentaseBendera,1,0)),\"\")","v":0},276,{"$f":"IFERROR(IF(PelacakTugas[Durasi Aktual (dalam hari)]=0,\"\",IF(ABS((PelacakTugas[[#This Row],[Durasi Aktual (dalam hari)]]-PelacakTugas[[#This Row],[Estimasi Durasi (dalam hari)]])/PelacakTugas[[#This Row],[Estimasi Durasi (dalam hari)]])>PersentaseBendera,1,0)),\"\")","v":1},{"$f":"IF(COUNTA('Pelacak Proyek'!$I8,'Pelacak Proyek'!$J8)<>2,\"\",DAYS360('Pelacak Proyek'!$I8,'Pelacak Proyek'!$J8,FALSE))","v":18}]
[null,"Proyek 5","Kategori 3","Karyawan 2",{"$f":"TODAY()-90","v":"2017-07-14"},{"$f":"TODAY()-50","v":"2017-08-23"},300,{"$f":"IF(COUNTA('Pelacak Proyek'!$E9,'Pelacak Proyek'!$F9)<>2,\"\",DAYS360('Pelacak Proyek'!$E9,'Pelacak Proyek'!$F9,FALSE))","v":39},{"$f":"TODAY()-90","v":"2017-07-14"},{"$f":"TODAY()-44","v":"2017-08-29"},{"$f":"IFERROR(IF(PelacakTugas[Pekerjaan Aktual \n(dalam jam)]=0,\"\",IF(ABS((PelacakTugas[[#This Row],[Pekerjaan Aktual \n(dalam jam)]]-PelacakTugas[[#This Row],[Estimasi Pekerjaan (dalam jam)]])/PelacakTugas[[#This Row],[Estimasi Pekerjaan (dalam jam)]])>PersentaseBendera,1,0)),\"\")","v":0},310,{"$f":"IFERROR(IF(PelacakTugas[Durasi Aktual (dalam hari)]=0,\"\",IF(ABS((PelacakTugas[[#This Row],[Durasi Aktual (dalam hari)]]-PelacakTugas[[#This Row],[Estimasi Durasi (dalam hari)]])/PelacakTugas[[#This Row],[Estimasi Durasi (dalam hari)]])>PersentaseBendera,1,0)),\"\")","v":0},{"$f":"IF(COUNTA('Pelacak Proyek'!$I9,'Pelacak Proyek'!$J9)<>2,\"\",DAYS360('Pelacak Proyek'!$I9,'Pelacak Proyek'!$J9,FALSE))","v":45}]
[null,"Proyek 6","Kategori 4","Karyawan 4",{"$f":"TODAY()-60","v":"2017-08-13"},{"$f":"TODAY()-50","v":"2017-08-23"},500,{"$f":"IF(COUNTA('Pelacak Proyek'!$E10,'Pelacak Proyek'!$F10)<>2,\"\",DAYS360('Pelacak Proyek'!$E10,'Pelacak Proyek'!$F10,FALSE))","v":10},{"$f":"TODAY()-60","v":"2017-08-13"},{"$f":"TODAY()-45","v":"2017-08-28"},{"$f":"IFERROR(IF(PelacakTugas[Pekerjaan Aktual \n(dalam jam)]=0,\"\",IF(ABS((PelacakTugas[[#This Row],[Pekerjaan Aktual \n(dalam jam)]]-PelacakTugas[[#This Row],[Estimasi Pekerjaan (dalam jam)]])/PelacakTugas[[#This Row],[Estimasi Pekerjaan (dalam jam)]])>PersentaseBendera,1,0)),\"\")","v":0},510,{"$f":"IFERROR(IF(PelacakTugas[Durasi Aktual (dalam hari)]=0,\"\",IF(ABS((PelacakTugas[[#This Row],[Durasi Aktual (dalam hari)]]-PelacakTugas[[#This Row],[Estimasi Durasi (dalam hari)]])/PelacakTugas[[#This Row],[Estimasi Durasi (dalam hari)]])>PersentaseBendera,1,0)),\"\")","v":1},{"$f":"IF(COUNTA('Pelacak Proyek'!$I10,'Pelacak Proyek'!$J10)<>2,\"\",DAYS360('Pelacak Proyek'!$I10,'Pelacak Proyek'!$J10,FALSE))","v":15}]
[null,"Proyek 7","Kategori 5","Karyawan 1",{"$f":"TODAY()-44","v":"2017-08-29"},{"$f":"TODAY()-20","v":"2017-09-22"},750,{"$f":"IF(COUNTA('Pelacak Proyek'!$E11,'Pelacak Proyek'!$F11)<>2,\"\",DAYS360('Pelacak Proyek'!$E11,'Pelacak Proyek'!$F11,FALSE))","v":23},{"$f":"TODAY()-44","v":"2017-08-29"},{"$f":"TODAY()-15","v":"2017-09-27"},{"$f":"IFERROR(IF(PelacakTugas[Pekerjaan Aktual \n(dalam jam)]=0,\"\",IF(ABS((PelacakTugas[[#This Row],[Pekerjaan Aktual \n(dalam jam)]]-PelacakTugas[[#This Row],[Estimasi Pekerjaan (dalam jam)]])/PelacakTugas[[#This Row],[Estimasi Pekerjaan (dalam jam)]])>PersentaseBendera,1,0)),\"\")","v":0},790,{"$f":"IFERROR(IF(PelacakTugas[Durasi Aktual (dalam hari)]=0,\"\",IF(ABS((PelacakTugas[[#This Row],[Durasi Aktual (dalam hari)]]-PelacakTugas[[#This Row],[Estimasi Durasi (dalam hari)]])/PelacakTugas[[#This Row],[Estimasi Durasi (dalam hari)]])>PersentaseBendera,1,0)),\"\")","v":0},{"$f":"IF(COUNTA('Pelacak Proyek'!$I11,'Pelacak Proyek'!$J11)<>2,\"\",DAYS360('Pelacak Proyek'!$I11,'Pelacak Proyek'!$J11,FALSE))","v":28}]
[null,"Proyek 8","Kategori 2","Karyawan 1",{"$f":"TODAY()-39","v":"2017-09-03"},{"$f":"TODAY()","v":"2017-10-12"},450,{"$f":"IF(COUNTA('Pelacak Proyek'!$E12,'Pelacak Proyek'!$F12)<>2,\"\",DAYS360('Pelacak Proyek'!$E12,'Pelacak Proyek'!$F12,FALSE))","v":39},{"$f":"TODAY()-45","v":"2017-08-28"},{"$f":"TODAY()-5","v":"2017-10-07"},{"$f":"IFERROR(IF(PelacakTugas[Pekerjaan Aktual \n(dalam jam)]=0,\"\",IF(ABS((PelacakTugas[[#This Row],[Pekerjaan Aktual \n(dalam jam)]]-PelacakTugas[[#This Row],[Estimasi Pekerjaan (dalam jam)]])/PelacakTugas[[#This Row],[Estimasi Pekerjaan (dalam jam)]])>PersentaseBendera,1,0)),\"\")","v":0},430,{"$f":"IFERROR(IF(PelacakTugas[Durasi Aktual (dalam hari)]=0,\"\",IF(ABS((PelacakTugas[[#This Row],[Durasi Aktual (dalam hari)]]-PelacakTugas[[#This Row],[Estimasi Durasi (dalam hari)]])/PelacakTugas[[#This Row],[Estimasi Durasi (dalam hari)]])>PersentaseBendera,1,0)),\"\")","v":0},{"$f":"IF(COUNTA('Pelacak Proyek'!$I12,'Pelacak Proyek'!$J12)<>2,\"\",DAYS360('Pelacak Proyek'!$I12,'Pelacak Proyek'!$J12,FALSE))","v":39}]
[null,"proyek 9","Kategori 4","Karyawan 1","2016-02-05","2016-06-09",250,{"$f":"IF(COUNTA('Pelacak Proyek'!$E13,'Pelacak Proyek'!$F13)<>2,\"\",DAYS360('Pelacak Proyek'!$E13,'Pelacak Proyek'!$F13,FALSE))","v":124},"2016-03-05","2016-05-05",{"$f":"IFERROR(IF(PelacakTugas[Pekerjaan Aktual \n(dalam jam)]=0,\"\",IF(ABS((PelacakTugas[[#This Row],[Pekerjaan Aktual \n(dalam jam)]]-PelacakTugas[[#This Row],[Estimasi Pekerjaan (dalam jam)]])/PelacakTugas[[#This Row],[Estimasi Pekerjaan (dalam jam)]])>PersentaseBendera,1,0)),\"\")","v":0},200,{"$f":"IFERROR(IF(PelacakTugas[Durasi Aktual (dalam hari)]=0,\"\",IF(ABS((PelacakTugas[[#This Row],[Durasi Aktual (dalam hari)]]-PelacakTugas[[#This Row],[Estimasi Durasi (dalam hari)]])/PelacakTugas[[#This Row],[Estimasi Durasi (dalam hari)]])>PersentaseBendera,1,0)),\"\")","v":1},{"$f":"IF(COUNTA('Pelacak Proyek'!$I13,'Pelacak Proyek'!$J13)<>2,\"\",DAYS360('Pelacak Proyek'!$I13,'Pelacak Proyek'!$J13,FALSE))","v":60}]

{"sheet":"Penyiapan","index":1,"n_rows":10,"n_cols":3,"rows_kept":10}
[null,"Penyiapan"]
[]
[]
[null,"Nama Kategori","Nama Karyawan"]
[null,"Kategori 1","Karyawan 1"]
[null,"Kategori 2","Karyawan 2"]
[null,"Kategori 3","Karyawan 3"]
[null,"Kategori 4","Karyawan 4"]
[null,"Kategori 5","Karyawan 5"]
[null,"Kategori 6","Karyawan 6"]